bitfinex/quotes_BTCUSD_20250114
["timestamp","ask_amount","ask_price","bid_price","bid_amount"]
[1736888629348,0.206887,96671.0,96665.0,0.00014884]
[1736888629691,0.206887,96671.0,96665.0,0.00714884]
[1736888629886,0.206891,96669.0,96665.0,0.00714884]
[1736888630066,0.001,96668.0,96665.0,0.01514884]
[1736888630767,0.001,96668.0,96665.0,0.01614884]
[1736888631043,0.001,96668.0,96665.0,0.01514884]
[1736888631193,0.206891,96669.0,96665.0,0.00014884]
[1736888631395,0.23674752,96669.0,96665.0,0.00214884]
[1736888631913,0.02985652,96669.0,96665.0,0.00214884]
[1736888633505,0.001,96668.0,96665.0,0.00714884]
[1736888633679,0.001,96668.0,96665.0,0.00814884]
[1736888634449,0.206891,96670.0,96665.0,0.00014884]
[1736888634802,0.001,96669.0,96665.0,0.00914884]
[1736888634939,0.206891,96670.0,96665.0,0.00214884]
[1736888635139,0.281616,96670.0,96665.0,0.00214884]
[1736888635441,0.001,96668.0,96665.0,0.01014884]
[1736888635640,0.281616,96670.0,96665.0,0.00214884]
[1736888635866,0.282616,96670.0,96665.0,0.00914884]
[1736888636273,0.282616,96670.0,96665.0,0.00714884]
[1736888636656,0.206893,96668.0,96665.0,0.00814884]
[1736888636855,0.206893,96668.0,96665.0,0.00994014]
[1736888637057,0.06161,96669.0,96665.0,0.00994014]
[1736888637260,0.001,96670.0,96665.0,0.00994014]
[1736888637470,0.001,96670.0,96665.0,0.00894014]
[1736888637673,0.333483,96673.0,96665.0,0.00394014]
[1736888637871,0.001,96668.0,96665.0,0.01194014]
[1736888638274,0.333483,96673.0,96665.0,0.00194014]
[1736888638491,0.001,96670.0,96668.0,0.206892]
[1736888638691,0.001,96670.0,96669.0,0.12826131]
[1736888638892,0.001,96670.0,96669.0,0.10422692]
[1736888639304,0.0815,96673.0,96670.0,0.206889]
[1736888639497,0.114847,96673.0,96670.0,0.10422692]
[1736888639776,0.0815,96673.0,96670.0,0.10422692]
[1736888640567,0.0815,96673.0,96670.0,0.10522692]
[1736888640766,0.0815,96673.0,96671.0,0.206887]
[1736888640985,0.0815,96673.0,96671.0,0.31111392]
[1736888641198,0.0815,96673.0,96672.0,0.10422692]
[1736888641843,0.0825,96673.0,96672.0,0.10422692]
[1736888642275,0.0815,96673.0,96672.0,0.10422692]
[1736888642443,0.0815,96673.0,96672.0,0.10922692]
[1736888642644,0.0825,96673.0,96672.0,0.13222692]
[1736888642844,0.001,96673.0,96672.0,0.13222692]
[1736888643051,0.001,96673.0,96672.0,0.13326122]
[1736888643257,0.001,96673.0,96672.0,0.13222692]
[1736888643475,0.001,96673.0,96672.0,0.13326111]
[1736888643864,0.001,96673.0,96672.0,0.11022692]
[1736888644084,0.0802,96673.0,96672.0,0.11022692]
[1736888644435,0.08722,96673.0,96665.0,0.00194014]
[1736888644628,0.08822,96673.0,96672.0,0.009]
[1736888644832,0.08822,96673.0,96672.0,0.012]
[1736888645041,0.08722,96673.0,96672.0,0.003]
[1736888645214,0.08822,96673.0,96672.0,0.008]
[1736888646038,0.08822,96673.0,96672.0,0.005]
[1736888646250,0.08822,96673.0,96672.0,0.006]
[1736888646456,0.13652,96673.0,96672.0,0.006]
[1736888647498,0.1285,96673.0,96672.0,0.006]
[1736888650067,0.1285,96673.0,96672.0,0.0077913]
[1736888651263,0.335382,96673.0,96672.0,0.0077913]
[1736888653068,0.1285,96673.0,96672.0,0.0077913]
[1736888653281,0.0802,96673.0,96672.0,0.0077913]
[1736888653495,0.287082,96673.0,96672.0,0.0077913]
[1736888655083,0.0802,96673.0,96672.0,0.0077913]
[1736888655389,0.287082,96673.0,96672.0,0.0077913]
[1736888656182,0.0802,96673.0,96672.0,0.0077913]
[1736888660672,0.001,96673.0,96672.0,0.13501822]
[1736888661087,0.001,96673.0,96672.0,0.15545513]
[1736888661424,0.0807,96692.0,96673.0,0.023]
[1736888661631,0.0807,96692.0,96691.0,0.206844]
[1736888661834,0.0807,96692.0,96691.0,0.31107092]
[1736888663920,0.0807,96692.0,96691.0,0.10422692]
[1736888664535,0.0807,96692.0,96691.0,0.10522692]
[1736888665397,0.0807,96692.0,96691.0,0.10422692]
[1736888665630,0.0807,96692.0,96691.0,0.10522692]
[1736888666859,0.000853,96695.0,96691.0,0.10522692]
[1736888667063,0.000853,96695.0,96692.0,0.31106892]
[1736888668185,0.000853,96695.0,96692.0,0.33144002]
[1736888668596,0.000853,96695.0,96692.0,0.33044002]
[1736888668917,0.000853,96695.0,96692.0,0.33744002]
[1736888669555,0.000853,96695.0,96692.0,0.77368586]
[1736888670164,0.000853,96695.0,96692.0,0.76668586]
[1736888670372,0.000853,96695.0,96692.0,0.76868586]
[1736888670544,0.000853,96695.0,96692.0,0.77468586]
[1736888670760,0.000853,96695.0,96692.0,0.66668586]
[1736888670943,0.000853,96695.0,96692.0,0.67568586]
[1736888671148,0.000853,96695.0,96692.0,0.67968586]
[1736888671374,0.000853,96695.0,96692.0,0.67068586]
[1736888671562,0.000853,96695.0,96692.0,0.67968586]
[1736888671792,0.000853,96695.0,96692.0,0.66668586]
[1736888672223,0.000853,96695.0,96692.0,0.67568586]
[1736888672818,0.000853,96695.0,96692.0,0.66514002]
[1736888673422,0.000853,96695.0,96692.0,0.66014002]
[1736888673846,0.000853,96695.0,96692.0,0.76014002]
[1736888674085,0.000853,96695.0,96692.0,0.76214002]
[1736888674379,0.000853,96695.0,96692.0,0.75814002]
[1736888674704,0.000853,96695.0,96692.0,0.92324002]
[1736888674915,0.000853,96695.0,96692.0,0.91524002]
[1736888675087,0.000853,96695.0,96692.0,1.05455199]
[1736888675311,0.000853,96695.0,96692.0,2.56034329]
[1736888675431,0.000853,96695.0,96692.0,2.56934329]
[1736888675641,0.000853,96695.0,96692.0,3.21394329]
[1736888675837,2.2e-07,96713.0,96692.0,3.21394329]
[1736888675838,2.2e-07,96713.0,96712.0,0.532499]
[1736888676059,2.2e-07,96713.0,96712.0,0.63672592]
[1736888676700,2.2e-07,96713.0,96712.0,0.65609702]
[1736888676902,2.2e-07,96713.0,96712.0,0.91519702]
[1736888677707,2.2e-07,96713.0,96712.0,0.91919702]
[1736888678133,2.2e-07,96713.0,96712.0,0.92419702]
[1736888678371,2.2e-07,96713.0,96712.0,0.93037609]
[1736888678779,2.2e-07,96713.0,96712.0,0.93937609]
[1736888679086,2.2e-07,96713.0,96712.0,1.59457609]
[1736888679642,2.2e-07,96713.0,96712.0,1.58957609]
[1736888679846,2.2e-07,96713.0,96712.0,1.58057609]
[1736888680061,2.2e-07,96713.0,96712.0,1.60746729]
[1736888680241,2.2e-07,96713.0,96712.0,1.58776729]
[1736888680442,2.2e-07,96713.0,96712.0,1.58176729]
[1736888680645,2.2e-07,96713.0,96712.0,1.81364796]
[1736888680848,2.2e-07,96713.0,96712.0,1.82964796]
[1736888681042,2.2e-07,96713.0,96712.0,1.72964796]
[1736888681290,2.2e-07,96713.0,96712.0,1.81364796]
[1736888681674,2.2e-07,96713.0,96712.0,1.58176729]
[1736888682078,2.2e-07,96713.0,96712.0,1.58676729]
[1736888683065,2.2e-07,96713.0,96712.0,1.59576729]
[1736888683264,2.2e-07,96713.0,96712.0,1.59076729]
[1736888683585,2.2e-07,96713.0,96712.0,1.58676729]
[1736888683990,2.2e-07,96713.0,96712.0,1.59076729]
[1736888684213,2.2e-07,96713.0,96712.0,1.58176729]
[1736888684624,2.2e-07,96713.0,96712.0,1.59676729]
[1736888684831,2.2e-07,96713.0,96712.0,1.58776729]
[1736888685025,2.2e-07,96713.0,96712.0,1.48176729]
[1736888685224,2.2e-07,96713.0,96712.0,1.38176729]
[1736888686275,2.2e-07,96713.0,96712.0,1.39076729]
[1736888686480,2.2e-07,96713.0,96712.0,1.23176729]
[1736888686860,2.2e-07,96713.0,96712.0,1.24676729]
[1736888687422,2.2e-07,96713.0,96712.0,1.24076729]
[1736888687627,0.08160022,96713.0,96712.0,1.21487609]
[1736888687825,0.08160022,96713.0,96712.0,1.22387609]
[1736888688047,0.08160022,96713.0,96712.0,1.21987609]
[1736888688487,0.08160022,96713.0,96712.0,1.22387609]
[1736888688752,0.08160022,96713.0,96712.0,0.66909702]
[1736888689224,0.08160022,96713.0,96712.0,0.66009702]
[1736888689581,0.08160022,96713.0,96712.0,0.66909702]
[1736888689947,0.08160022,96713.0,96712.0,0.66009702]
[1736888690206,0.08160022,96713.0,96712.0,0.66909702]
[1736888690614,0.08160022,96713.0,96712.0,0.65609702]
[1736888690790,0.08160022,96713.0,96712.0,0.66509702]
[1736888690989,0.08160022,96713.0,96712.0,0.66909702]
[1736888691358,0.08160022,96713.0,96712.0,0.66509702]
[1736888691575,0.08160022,96713.0,96712.0,0.66809702]
[1736888692364,0.08160022,96713.0,96712.0,0.34239702]
[1736888692987,0.08160022,96713.0,96712.0,0.32302592]
[1736888695220,0.08160022,96713.0,96712.0,0.34233289]
[1736888695894,2.2e-07,96713.0,96712.0,0.34233289]
[1736888697345,2.2e-07,96713.0,96712.0,0.33933289]
[1736888697485,2.2e-07,96713.0,96712.0,0.33033289]
[1736888697688,2.2e-07,96713.0,96712.0,0.33333289]
[1736888698121,2.2e-07,96713.0,96712.0,0.33033289]
[1736888698325,2.2e-07,96713.0,96712.0,0.33333289]
[1736888699005,2.2e-07,96713.0,96712.0,0.33933289]
[1736888699307,2.2e-07,96713.0,96712.0,0.34233289]
[1736888699539,2.2e-07,96713.0,96712.0,0.33333289]
[1736888699749,2.2e-07,96713.0,96712.0,0.34233289]
[1736888699991,2.2e-07,96713.0,96712.0,0.33333289]
[1736888700473,2.2e-07,96713.0,96712.0,0.34233289]
[1736888700713,2.2e-07,96713.0,96712.0,0.33033289]
[1736888700941,2.2e-07,96713.0,96712.0,0.34133289]
[1736888701461,2.2e-07,96713.0,96712.0,0.33933289]
[1736888701743,2.2e-07,96713.0,96712.0,0.34233289]
[1736888702087,2.2e-07,96713.0,96712.0,0.33933289]
[1736888702505,2.2e-07,96713.0,96712.0,0.34133289]
[1736888702718,2.2e-07,96713.0,96712.0,0.33233289]
[1736888703122,2.2e-07,96713.0,96712.0,0.34133289]
[1736888703377,2.2e-07,96713.0,96712.0,0.33233289]
[1736888703894,2.2e-07,96713.0,96712.0,0.33733289]
[1736888704027,2.2e-07,96713.0,96712.0,0.33233289]
[1736888704243,2.2e-07,96713.0,96712.0,0.33933289]
[1736888704436,2.2e-07,96713.0,96712.0,0.33733289]
[1736888704845,2.2e-07,96713.0,96712.0,0.33833289]
[1736888705049,2.2e-07,96713.0,96712.0,0.33133289]
[1736888705476,2.2e-07,96713.0,96712.0,0.33033289]
[1736888705903,2.2e-07,96713.0,96712.0,0.12353389]
[1736888706102,0.12630022,96713.0,96712.0,0.01930697]
[1736888706306,0.206823,96701.0,96692.0,0.18670433]
[1736888706525,0.20682,96702.0,96692.0,0.18670433]
[1736888706753,0.206825,96700.0,96695.0,0.0017913]
[1736888706931,0.0491,96699.0,96695.0,0.0017913]
[1736888707107,0.0772,96697.0,96695.0,0.0017913]
[1736888708379,0.284033,96697.0,96695.0,0.0017913]
[1736888710215,0.15648715,96696.0,96695.0,0.0017913]
[1736888711080,0.1263,96694.0,96692.0,0.0017913]
[1736888711279,0.07827629,96693.0,96692.0,0.0017913]
[1736888711479,0.43511629,96693.0,96692.0,0.0017913]
[1736888711653,0.48926,96693.0,96692.0,0.0017913]
[1736888712056,0.20522,96693.0,96664.0,0.206902]
[1736888712381,0.1263,96676.0,96673.0,0.10422692]
[1736888712575,0.00107629,96675.0,96664.0,0.206902]
[1736888712790,0.1263,96676.0,96664.0,0.413804]
[1736888713378,0.1263,96676.0,96672.0,0.0027913]
[1736888713794,0.1263,96676.0,96672.0,0.0017913]
[1736888714047,0.1273,96676.0,96672.0,0.0017913]
[1736888714204,0.206878,96675.0,96672.0,0.0017913]
[1736888714407,0.1273,96676.0,96672.0,0.0017913]
[1736888715166,0.1263,96676.0,96672.0,0.0017913]
[1736888716266,0.20795429,96675.0,96672.0,0.0017913]
[1736888716474,0.41483329,96675.0,96672.0,0.0017913]
[1736888716677,0.41583329,96675.0,96672.0,0.0017913]
[1736888716890,0.50415417,96675.0,96672.0,0.0017913]
[1736888719384,0.41583329,96675.0,96672.0,0.0017913]
[1736888720177,0.288182,96673.0,96672.0,0.0017913]
[1736888720381,0.506482,96673.0,96672.0,0.0017913]
[1736888720595,0.506497,96666.0,96644.0,0.01928404]
[1736888720811,0.512617,96666.0,96644.0,0.01928404]
[1736888721010,0.58664042,96666.0,96644.0,0.01928404]
[1736888721227,0.1,96663.0,96644.0,0.01928404]
[1736888721438,0.1,96663.0,96630.0,0.206974]
[1736888721439,0.206942,96645.0,96630.0,0.206974]
[1736888721665,0.206947,96643.0,96625.0,0.206984]
[1736888721901,0.413894,96643.0,96625.0,0.206984]
[1736888722124,0.413894,96643.0,96630.0,0.206974]
[1736888722325,0.413894,96643.0,96625.0,0.206984]
[1736888722596,0.00107629,96642.0,96622.0,0.01025978]
[1736888722786,0.00107629,96642.0,96621.0,0.206992]
[1736888722787,0.286251,96641.0,96621.0,0.206992]
[1736888723333,0.436251,96641.0,96621.0,0.206992]
[1736888723548,0.459251,96641.0,96617.0,0.207002]
[1736888723753,0.459251,96641.0,96640.0,0.00579214]
[1736888723962,0.459251,96641.0,96640.0,0.00179214]
[1736888724179,0.55134382,96641.0,96640.0,0.00179214]
[1736888724420,0.55534382,96641.0,96640.0,0.00179214]
[1736888724844,0.55334382,96641.0,96640.0,0.00179214]
[1736888725043,0.55946382,96641.0,96640.0,0.00179214]
[1736888725218,0.57193023,96641.0,96640.0,0.00179214]
[1736888725865,0.57393023,96641.0,96640.0,0.00179214]
[1736888726075,0.56781023,96641.0,96640.0,0.00179214]
[1736888726286,0.44871741,96641.0,96640.0,0.00179214]
[1736888726831,0.44971741,96641.0,96640.0,0.00179214]
[1736888727250,0.44771741,96641.0,96640.0,0.00179214]
[1736888727384,0.44671741,96641.0,96640.0,0.00179214]
[1736888727564,0.45071741,96641.0,96640.0,0.00179214]
[1736888728222,0.440251,96641.0,96640.0,0.00179214]
[1736888729104,0.438251,96641.0,96640.0,0.00179214]
[1736888729304,0.440251,96641.0,96640.0,0.00179214]
[1736888729678,0.438251,96641.0,96640.0,0.00179214]
[1736888730078,0.436251,96641.0,96640.0,0.00179214]
[1736888730350,0.438251,96641.0,96640.0,0.00179214]
[1736888730550,0.440251,96641.0,96640.0,0.00179214]
[1736888730765,0.436251,96641.0,96640.0,0.00179214]
[1736888730949,0.438251,96641.0,96640.0,0.00179214]
[1736888731603,0.44402826,96641.0,96640.0,0.00179214]
[1736888732172,0.44602826,96641.0,96640.0,0.00179214]
[1736888733094,0.53844333,96641.0,96640.0,0.00179214]
[1736888733231,0.44602826,96641.0,96640.0,0.00179214]
[1736888734058,0.08907726,96641.0,96640.0,0.00179214]
[1736888734888,0.08707726,96641.0,96640.0,0.00179214]
[1736888735025,0.08807726,96641.0,96640.0,0.00179214]
[1736888735225,0.08607726,96641.0,96640.0,0.00179214]
[1736888735452,0.08707726,96641.0,96640.0,0.00179214]
[1736888735693,0.08607726,96641.0,96640.0,0.00179214]
[1736888736160,0.08807726,96641.0,96640.0,0.00179214]
[1736888736520,0.08507726,96641.0,96640.0,0.00179214]
[1736888737037,0.08707726,96641.0,96640.0,0.00179214]
[1736888737214,0.08807726,96641.0,96640.0,0.00179214]
[1736888737414,0.08607726,96641.0,96640.0,0.00179214]
[1736888737644,0.00777726,96641.0,96640.0,0.31297206]
[1736888737983,0.002,96641.0,96640.0,0.31297206]
[1736888738189,0.001,96641.0,96640.0,0.31297206]
[1736888738649,9.219e-05,96643.0,96640.0,0.31297206]
[1736888738851,9.219e-05,96643.0,96641.0,0.10422692]
[1736888739228,9.219e-05,96643.0,96642.0,0.206949]
[1736888739433,9.219e-05,96643.0,96642.0,0.31117592]
[1736888741432,9.219e-05,96643.0,96642.0,0.31217592]
[1736888741837,9.219e-05,96643.0,96642.0,0.31717592]
[1736888745976,9.219e-05,96643.0,96642.0,0.31214292]
[1736888747339,0.12605743,96657.0,96646.0,0.20694]
[1736888747535,0.12605743,96657.0,96647.0,0.10422692]
[1736888748579,0.12705743,96657.0,96647.0,0.10422692]
[1736888749435,0.12705743,96657.0,96648.0,0.206936]
[1736888749601,0.12705743,96657.0,96649.0,0.10422692]
[1736888749804,0.12605743,96657.0,96649.0,0.10422692]
[1736888750224,0.12705743,96657.0,96649.0,0.10422692]
[1736888750659,0.12605743,96657.0,96649.0,0.10422692]
[1736888751065,0.12705743,96657.0,96649.0,0.10422692]
[1736888756243,0.001,96657.0,96653.0,0.413848]
[1736888756441,0.001,96657.0,96655.0,0.206921]
[1736888756760,0.00087549,96657.0,96656.0,0.10422692]
[1736888756968,0.0765539,96665.0,96656.0,0.10422692]
[1736888757169,0.00573453,96657.0,96656.0,0.10422692]
[1736888757389,0.0765539,96665.0,96656.0,0.10422692]
[1736888757973,0.00573596,96664.0,96656.0,0.10422692]
[1736888759275,0.00573596,96664.0,96656.0,0.10522692]
[1736888760107,0.00573596,96664.0,96656.0,0.31214492]
[1736888760477,0.00573596,96664.0,96656.0,0.10522692]
[1736888763785,0.00573596,96664.0,96660.0,0.413819]
[1736888763942,0.0008539,96665.0,96662.0,0.206906]
[1736888764149,0.001,96664.0,96663.0,0.10422692]
[1736888764599,0.0008539,96665.0,96663.0,0.10422692]
[1736888764975,0.0008539,96665.0,96664.0,0.206902]
[1736888765206,0.0008539,96665.0,96664.0,0.31112892]
[1736888766572,0.0008539,96665.0,96664.0,0.31712892]
[1736888766750,0.0008539,96665.0,96664.0,0.32135941]
[1736888766947,0.0008539,96665.0,96664.0,0.64705941]
[1736888767364,0.0008539,96665.0,96664.0,0.65005941]
[1736888767800,0.0008539,96665.0,96664.0,0.67933988]
[1736888767951,0.0008539,96665.0,96664.0,0.68433988]
[1736888768151,0.0008539,96665.0,96664.0,0.69233988]
[1736888768393,0.0008539,96665.0,96664.0,0.66005941]
[1736888768612,0.0008539,96665.0,96664.0,0.80205941]
[1736888768993,0.0008539,96665.0,96664.0,0.81105941]
[1736888769700,0.0008539,96665.0,96664.0,0.95039687]
[1736888769881,0.0008539,96665.0,96664.0,0.93639687]
[1736888770077,0.0008539,96665.0,96664.0,0.94539687]
[1736888770277,0.0008539,96665.0,96664.0,0.94839687]
[1736888770697,0.0008539,96665.0,96664.0,0.90185665]
[1736888771022,0.0008539,96665.0,96664.0,0.89885665]
[1736888771224,0.0008539,96665.0,96664.0,0.90385665]
[1736888771380,0.0008539,96665.0,96664.0,0.81105941]
[1736888774865,0.206775,96724.0,96691.0,0.206844]
[1736888775068,0.0927074,96728.0,96691.0,0.31107092]
[1736888775287,0.206762,96730.0,96691.0,0.31107092]
[1736888775640,6e-07,96692.0,96691.0,0.78677092]
[1736888775838,6e-07,96692.0,96691.0,1.53137092]
[1736888776244,6e-07,96692.0,96691.0,1.54037092]
[1736888776425,6e-07,96692.0,96691.0,1.53137092]
[1736888776619,6e-07,96692.0,96691.0,1.54166025]
[1736888777142,6e-07,96692.0,96691.0,1.63445749]
[1736888777310,6e-07,96692.0,96691.0,1.66003445]
[1736888777665,6e-07,96692.0,96691.0,1.56615445]
[1736888777868,6e-07,96692.0,96691.0,1.46003445]
[1736888778074,6e-07,96692.0,96691.0,1.21723721]
[1736888778274,6e-07,96692.0,96691.0,1.22623721]
[1736888778675,6e-07,96692.0,96691.0,1.21723721]
[1736888778907,6e-07,96692.0,96691.0,1.20566025]
[1736888779108,6e-07,96692.0,96691.0,0.66106025]
[1736888779312,6e-07,96692.0,96691.0,0.64706025]
[1736888779519,6e-07,96692.0,96691.0,0.66106025]
[1736888779901,6e-07,96692.0,96691.0,0.65077092]
[1736888780071,6e-07,96692.0,96691.0,0.009]
[1736888780274,6e-07,96692.0,96691.0,0.014]
[1736888780705,6e-07,96692.0,96691.0,0.009]
[1736888780885,6e-07,96692.0,96687.0,0.206852]
[1736888781252,6e-07,96692.0,96691.0,0.002]
[1736888781609,6e-07,96692.0,96691.0,0.011]
[1736888781975,6e-07,96692.0,96691.0,0.002]
[1736888782384,6e-07,96692.0,96688.0,0.10422692]
[1736888782939,6e-07,96692.0,96691.0,0.001]
[1736888784228,6e-07,96692.0,96688.0,0.10422692]
[1736888784683,0.01085548,96691.0,96689.0,0.206848]
[1736888784868,6e-07,96692.0,96690.0,0.10422692]
[1736888785081,6e-07,96692.0,96691.0,0.001]
[1736888785251,6e-07,96692.0,96691.0,0.31207092]
[1736888785434,6e-07,96692.0,96691.0,0.31107092]
[1736888786276,6e-07,96692.0,96691.0,0.31307092]
[1736888787777,6e-07,96692.0,96691.0,0.31107092]
[1736888787957,6e-07,96692.0,96691.0,0.31307092]
[1736888788155,6e-07,96692.0,96691.0,0.31107092]
[1736888788557,6e-07,96692.0,96691.0,0.32007092]
[1736888788761,6e-07,96692.0,96691.0,0.31407092]
[1736888789142,6e-07,96692.0,96691.0,0.32007092]
[1736888789345,6e-07,96692.0,96691.0,0.31107092]
[1736888789681,6e-07,96692.0,96691.0,0.31307092]
[1736888790897,6e-07,96692.0,96691.0,0.32007092]
[1736888791110,6e-07,96692.0,96691.0,0.31307092]
[1736888791661,6e-07,96692.0,96691.0,0.32007092]
[1736888792066,6e-07,96692.0,96691.0,0.31807092]
[1736888792278,6e-07,96692.0,96691.0,0.32007092]
[1736888793154,6e-07,96692.0,96691.0,0.31807092]
[1736888793561,6e-07,96692.0,96691.0,0.32007092]
[1736888793902,6e-07,96692.0,96691.0,0.31807092]
[1736888794418,6e-07,96692.0,96691.0,0.31107092]
[1736888794616,6e-07,96692.0,96691.0,0.31907092]
[1736888795048,6e-07,96692.0,96691.0,0.31107092]
[1736888795225,6e-07,96692.0,96691.0,0.31807092]
[1736888795423,6e-07,96692.0,96691.0,0.32107092]
[1736888795627,6e-07,96692.0,96691.0,0.31407092]
[1736888795850,6e-07,96692.0,96691.0,0.31807092]
[1736888796411,6e-07,96692.0,96691.0,0.32007092]
[1736888797061,6e-07,96692.0,96691.0,0.32186348]
[1736888800008,6e-07,96692.0,96691.0,0.64756348]
[1736888804066,6e-07,96692.0,96691.0,0.89756348]
[1736888804267,6e-07,96692.0,96691.0,1.59742914]
[1736888804883,6e-07,96692.0,96691.0,3.09542914]
[1736888805088,6e-07,96692.0,96691.0,3.32065825]
[1736888805283,6e-07,96692.0,96691.0,3.32565825]
[1736888805489,6e-07,96692.0,96691.0,3.33465825]
[1736888805709,2.2e-07,96713.0,96706.0,0.1]
[1736888805907,2.2e-07,96713.0,96712.0,0.63672592]
[1736888808422,2.2e-07,96713.0,96712.0,0.64472592]
[1736888808629,2.2e-07,96713.0,96712.0,0.63672592]
[1736888808922,2.2e-07,96713.0,96712.0,0.64572592]
[1736888809455,2.2e-07,96713.0,96712.0,0.64872592]
[1736888809970,2.2e-07,96713.0,96712.0,0.65915589]
[1736888810372,2.2e-07,96713.0,96712.0,0.75185244]
[1736888810976,2.2e-07,96713.0,96712.0,0.77231653]
[1736888811225,2.2e-07,96713.0,96712.0,0.76931653]
[1736888811359,2.2e-07,96713.0,96712.0,0.67661998]
[1736888812544,2.2e-07,96713.0,96712.0,0.68061998]
[1736888814897,2.2e-07,96713.0,96712.0,0.77336933]
[1736888815210,2.2e-07,96713.0,96712.0,0.76436933]
[1736888815412,2.2e-07,96713.0,96712.0,0.76036933]
[1736888815538,2.2e-07,96713.0,96712.0,0.76936933]
[1736888815744,2.2e-07,96713.0,96712.0,0.77336933]
[1736888816381,2.2e-07,96713.0,96712.0,0.76936933]
[1736888816594,2.2e-07,96713.0,96712.0,0.77436933]
[1736888816758,2.2e-07,96713.0,96712.0,0.71255599]
[1736888817137,2.2e-07,96713.0,96712.0,0.70355599]
[1736888817594,2.2e-07,96713.0,96712.0,0.71255599]
[1736888817813,2.2e-07,96713.0,96712.0,0.70355599]
[1736888818176,2.2e-07,96713.0,96712.0,0.71255599]
[1736888818363,2.2e-07,96713.0,96712.0,0.70355599]
[1736888818567,2.2e-07,96713.0,96712.0,0.69855599]
[1736888818766,2.2e-07,96713.0,96712.0,0.70755599]
[1736888818966,2.2e-07,96713.0,96712.0,0.71155599]
[1736888819421,2.2e-07,96713.0,96712.0,0.70755599]
[1736888819782,2.2e-07,96713.0,96712.0,0.71155599]
[1736888820191,2.2e-07,96713.0,96712.0,0.70255599]
[1736888820434,2.2e-07,96713.0,96712.0,0.71155599]
[1736888822427,0.07900022,96713.0,96712.0,0.71155599]
[1736888825361,2.2e-07,96713.0,96712.0,0.71155599]
[1736888826556,2.2e-07,96713.0,96712.0,0.70755599]
[1736888826760,2.2e-07,96713.0,96712.0,1.63955599]
[1736888827019,0.079,96739.0,96738.0,0.532443]
[1736888827228,0.079,96747.0,96743.0,0.206733]
[1736888827426,0.00135059,96744.0,96743.0,0.31095992]
[1736888827646,0.00135059,96744.0,96743.0,0.63665992]
[1736888828328,0.00135059,96744.0,96743.0,0.66759593]
[1736888828496,0.00135059,96744.0,96743.0,0.6858606]
[1736888828795,0.0798535,96762.0,96760.0,0.206696]
[1736888828954,0.0798535,96762.0,96760.0,0.31195628]
[1736888829158,0.0010029,96761.0,96760.0,0.31092292]
[1736888830687,0.0010029,96761.0,96760.0,0.31792292]
[1736888831718,0.0010029,96761.0,96760.0,0.31992292]
[1736888832199,0.0010029,96761.0,96760.0,0.31792292]
[1736888832603,0.1235029,96761.0,96760.0,0.007]
[1736888832821,0.1225,96759.0,96747.0,0.03089438]
[1736888832983,0.0451,96757.0,96748.0,0.10422692]
[1736888833186,0.0774,96754.0,96748.0,0.10422692]
[1736888833819,0.0451,96751.0,96733.0,0.03089438]
[1736888834021,0.0451,96751.0,96747.0,0.206723]
[1736888834228,0.0451,96751.0,96747.0,0.31094992]
[1736888834427,0.0451,96751.0,96747.0,0.10422692]
[1736888835074,0.0451,96751.0,96747.0,0.10522692]
[1736888835635,0.05745763,96751.0,96747.0,0.10522692]
[1736888835898,0.08718161,96750.0,96747.0,0.10522692]
[1736888836348,0.08718161,96750.0,96747.0,0.10422692]
[1736888836825,0.08718161,96750.0,96747.0,0.10522692]
[1736888836943,0.08718161,96750.0,96747.0,0.10422692]
[1736888837343,0.08918161,96750.0,96747.0,0.10422692]
[1736888837929,0.08918161,96750.0,96739.0,0.206741]
[1736888838098,0.11217525,96749.0,96740.0,0.10422692]
[1736888838299,0.077,96748.0,96740.0,0.10422692]
[1736888838519,0.1239,96745.0,96740.0,0.10422692]
[1736888838801,0.00978451,96744.0,96740.0,0.10422692]
[1736888839815,0.00978451,96744.0,96741.0,0.20776971]
[1736888840016,0.0469,96756.0,96742.0,0.10422692]
[1736888840224,0.077,96753.0,96752.0,0.206714]
[1736888840420,0.077,96753.0,96752.0,0.31094092]
[1736888841217,0.077,96753.0,96752.0,0.31294092]
[1736888841772,0.077,96753.0,96752.0,0.31694092]
[1736888842145,0.077,96753.0,96752.0,0.31394092]
[1736888843773,0.077,96767.0,96760.0,0.206696]
[1736888843977,0.01073782,96761.0,96760.0,0.31092292]
[1736888844178,0.0010029,96761.0,96760.0,0.31092292]
[1736888844966,0.0010029,96761.0,96760.0,0.31292292]
[1736888845196,0.0010029,96761.0,96760.0,0.31892292]
[1736888845385,0.0010029,96761.0,96760.0,0.31092292]
[1736888845713,0.0010029,96761.0,96760.0,0.31892292]
[1736888854042,0.0010029,96761.0,96760.0,0.64462292]
[1736888856386,0.0010029,96761.0,96760.0,0.64641422]
[1736888857173,0.0780029,96761.0,96760.0,0.64641422]
[1736888858034,0.0780029,96761.0,96760.0,0.63841422]
[1736888858241,0.0780029,96761.0,96760.0,0.64541422]
[1736888858415,0.0780029,96761.0,96760.0,0.62586804]
[1736888858623,0.0780029,96761.0,96760.0,0.61886804]
[1736888858988,0.0780029,96761.0,96760.0,0.62386804]
[1736888860085,0.0780029,96761.0,96760.0,0.30006804]
[1736888863795,0.0010029,96761.0,96760.0,0.30006804]
[1736888864738,0.0010029,96761.0,96760.0,0.29306804]
[1736888865042,0.0010029,96761.0,96760.0,0.30406804]
[1736888865043,0.0020029,96761.0,96760.0,0.30406804]
[1736888865258,0.0010029,96761.0,96760.0,0.29606804]
[1736888865663,0.0020029,96761.0,96760.0,0.30506804]
[1736888865822,0.0020029,96761.0,96760.0,0.63076804]
[1736888866749,0.0020029,96761.0,96760.0,0.62776804]
[1736888867120,0.0020029,96761.0,96760.0,0.63176804]
[1736888867318,0.0010029,96761.0,96760.0,0.62276804]
[1736888867520,0.0010029,96761.0,96760.0,0.61876804]
[1736888867731,0.0010029,96761.0,96760.0,0.62776804]
[1736888867934,0.0010029,96761.0,96760.0,0.62376804]
[1736888868333,0.0010029,96761.0,96760.0,0.62776804]
[1736888868579,0.0010029,96761.0,96760.0,0.61876804]
[1736888868808,0.0010029,96761.0,96760.0,0.62376804]
[1736888868983,0.0010029,96761.0,96760.0,0.63276804]
[1736888869940,0.0010029,96761.0,96760.0,0.62776804]
[1736888870438,0.0010029,96761.0,96760.0,0.63276804]
[1736888870646,0.0010029,96761.0,96760.0,0.62376804]
[1736888870845,0.0010029,96761.0,96760.0,0.61876804]
[1736888871043,0.0010029,96761.0,96760.0,0.62376804]
[1736888871305,0.0010029,96761.0,96760.0,0.63276804]
[1736888872006,0.0010029,96761.0,96760.0,0.62376804]
[1736888872409,0.0010029,96761.0,96760.0,0.63276804]
[1736888873164,0.0010029,96761.0,96760.0,0.77182751]